bitfinex/quotes_SOLUSD_20230401
["timestamp","ask_amount","ask_price","bid_price","bid_amount"]
[1680386183076,21.49,21.06,21.044,9.5]
[1680386183392,10.0,21.066,21.045,40.757]
[1680386183697,116.2575,21.067,21.046,10.0]
[1680386183894,116.2575,21.067,21.047,17.0]
[1680386184081,116.2575,21.067,21.048,10.0]
[1680386184772,17.0,21.064,21.048,10.0]
[1680386187093,17.0,21.064,21.051,10.0]
[1680386187392,116.2575,21.067,21.051,10.0]
[1680386187596,116.2575,21.067,21.052,20.0]
[1680386187892,116.2575,21.067,21.053,10.0]
[1680386188576,116.2575,21.067,21.055,10.0]
[1680386190296,10.0,21.072,21.055,10.0]
[1680386190993,17.0,21.071,21.055,10.0]
[1680386200493,37.999642,21.073,21.055,10.0]
[1680386200799,37.999642,21.073,21.057,10.0]
[1680386201008,37.999642,21.073,21.058,17.0]
[1680386201309,37.999642,21.073,21.059,10.0]
[1680386203812,17.0,21.072,21.059,10.0]
[1680386207006,17.0,21.072,21.061,10.0]
[1680386207204,17.0,21.074,21.061,10.0]
[1680386215118,24.13032348,21.074,21.061,10.0]
[1680386234739,114.1671,21.075,21.061,10.0]
[1680386234926,114.1671,21.075,21.062,20.0]
[1680386235244,114.1671,21.075,21.063,10.0]
[1680386235533,114.1671,21.075,21.065,10.0]
[1680386236536,119.7885,21.076,21.065,10.0]
[1680386236732,119.7885,21.076,21.066,17.0]
[1680386236928,119.7885,21.076,21.067,10.0]
[1680386244343,119.7885,21.076,21.068,17.0]
[1680386244646,119.7885,21.076,21.069,10.0]
[1680386244959,7.13032348,21.084,21.069,10.0]
[1680386247036,17.0,21.083,21.069,10.0]
[1680386257035,17.0,21.083,21.071,10.0]
[1680386258158,7.13032348,21.084,21.071,10.0]
[1680386258458,17.0,21.083,21.071,10.0]
[1680386263459,10.0,21.085,21.071,10.0]
[1680386263653,10.0,21.085,21.073,10.0]
[1680386264260,110.3637,21.086,21.073,10.0]
[1680386264642,117.49402348,21.086,21.073,10.0]
[1680386265457,10.0,21.084,21.073,10.0]
[1680386266573,27.0,21.085,21.073,10.0]
[1680386267551,34.13032348,21.085,21.071,10.0]
[1680386270169,10.0,21.084,21.071,10.0]
[1680386270369,17.0,21.083,21.071,10.0]
[1680386272758,17.13032348,21.085,21.071,10.0]
[1680386272962,17.13032348,21.085,21.073,10.0]
[1680386272963,7.13032348,21.085,21.073,10.0]
[1680386275973,110.3637,21.086,21.075,10.0]
[1680386283586,10.0,21.084,21.073,10.0]
[1680386283768,17.0,21.083,21.074,20.0]
[1680386286876,17.0,21.084,21.074,20.0]
[1680386291666,17.0,21.084,21.07,10.0]
[1680386291871,21.49,21.08,21.07,10.0]
[1680386292082,17.0,21.079,21.07,10.0]
[1680386292592,17.0,21.079,21.065,128.0769]
[1680386292969,17.0,21.079,21.065,10.0]
[1680386301484,10.0,21.078,21.065,10.0]
[1680386301680,17.0,21.077,21.065,10.0]
[1680386302201,17.0,21.077,21.063,10.0]
[1680386302393,10.0,21.075,21.064,20.0]
[1680386302582,17.0,21.074,21.064,20.0]
[1680386304386,10.0,21.074,21.064,20.0]
[1680386304587,17.0,21.073,21.064,20.0]
[1680386304895,16.88161922,21.073,21.065,10.0]
[1680386305094,116.1481,21.076,21.065,10.0]
[1680386306798,17.0,21.075,21.065,10.0]
[1680386313091,17.0,21.075,21.063,10.0]
[1680386313301,10.0,21.074,21.062,10.0]
[1680386313493,17.0,21.073,21.062,10.0]
[1680386313900,10.0,21.072,21.059,34.7018886]
[1680386314098,26.81,21.07,21.059,34.7018886]
[1680386314406,17.0,21.069,21.059,34.7018886]
[1680386318811,17.0,21.069,21.059,34.62473339]
[1680386340749,10.0,21.074,21.06,10.0]
[1680386341853,10.0,21.072,21.06,10.0]
[1680386342031,17.0,21.071,21.06,10.0]
[1680386342748,17.0,21.071,21.06,10.0]
[1680386348140,17.0,21.073,21.06,10.0]
[1680386362567,21.39,21.07,21.06,10.0]
[1680386367160,17.0,21.073,21.06,10.0]
[1680386375083,10.0,21.074,21.06,10.0]
[1680386375281,17.0,21.073,21.06,10.0]
[1680386391392,21.39,21.07,21.057,10.0]
[1680386391689,17.0,21.069,21.057,10.0]
[1680386400291,17.0,21.069,21.056,10.0]
[1680386400500,17.0,21.069,21.051,10.0]
[1680386400501,10.0,21.068,21.051,10.0]
[1680386400796,21.35,21.06,21.051,10.0]
[1680386400999,17.0,21.059,21.051,10.0]
[1680386401586,17.0,21.059,21.048,10.0]
[1680386404503,21.35,21.06,21.048,10.0]
[1680386405300,10.0,21.064,21.048,10.0]
[1680386406297,17.0,21.063,21.048,10.0]
[1680386408284,10.0,21.063,21.048,10.0]
[1680386410300,17.0,21.064,21.048,10.0]
[1680386411701,222.3274,21.065,21.048,10.0]
[1680386411891,108.4317,21.065,21.05,31.47]
[1680386412205,40.351045,21.07,21.053,10.0]
[1680386412391,40.351045,21.07,21.054,37.0]
[1680386412702,40.351045,21.07,21.055,10.0]
[1680386412886,40.351045,21.07,21.056,17.0]
[1680386413084,19.001045,21.07,21.056,40.746]
[1680386413303,19.001045,21.07,21.057,10.0]
[1680386415196,19.001045,21.07,21.059,10.0]
[1680386416604,19.001045,21.07,21.061,10.0]
[1680386416905,47.413,21.091,21.061,10.0]
[1680386416906,21.39,21.1,21.068,23.732]
[1680386417101,10.0,21.099,21.08,21.47]
[1680386417299,10.0,21.099,21.081,47.0]
[1680386417608,10.0,21.099,21.081,30.0]
[1680386417990,10.0,21.099,21.081,128.29763666]
[1680386419296,10.0,21.099,21.081,257.40636497]
[1680386420907,10.0,21.099,21.081,189.95605179]
[1680386421214,10.0,21.099,21.083,10.0]
[1680386421396,10.0,21.099,21.085,10.0]
[1680386422106,26.53,21.1,21.085,10.0]
[1680386422711,10.0,21.101,21.085,10.0]
[1680386423408,10.0,21.099,21.085,10.0]
[1680386423795,17.0,21.1,21.085,139.10872831]
[1680386426394,10.0,21.105,21.085,139.10872831]
[1680386426598,10.0,21.105,21.09,26.77]
[1680386426807,10.0,21.105,21.091,10.0]
[1680386427208,21.39,21.106,21.091,10.0]
[1680386428396,10.0,21.104,21.091,10.0]
[1680386429417,17.0,21.105,21.091,10.0]
[1680386429601,21.39,21.106,21.093,10.0]
[1680386430017,10.0,21.105,21.093,10.0]
[1680386436110,10.0,21.108,21.093,10.0]
[1680386436320,17.0,21.106,21.093,10.0]
[1680386436716,10.0,21.108,21.093,10.0]
[1680386436915,17.0,21.106,21.093,10.0]
[1680386437619,10.0,21.108,21.093,10.0]
[1680386437921,10.0,21.108,21.095,10.0]
[1680386438626,98.4846,21.109,21.095,139.10872831]
[1680386438808,98.4846,21.109,21.097,10.0]
[1680386439221,10.0,21.112,21.097,10.0]
[1680386441108,10.0,21.11,21.097,10.0]
[1680386441618,17.0,21.109,21.097,10.0]
[1680386441807,10.0,21.11,21.097,10.0]
[1680386442212,17.0,21.109,21.097,10.0]
[1680386444626,10.0,21.11,21.097,10.0]
[1680386447031,10.0,21.112,21.097,10.0]
[1680386447242,10.0,21.11,21.097,10.0]
[1680386454026,10.0,21.108,21.094,10.0]
[1680386454228,17.0,21.107,21.094,10.0]
[1680386454439,10.0,21.106,21.094,10.0]
[1680386460529,10.0,21.108,21.094,10.0]
[1680386460737,108.9448,21.109,21.096,10.0]
[1680386474450,10.0,21.108,21.094,10.0]
[1680386474658,17.0,21.107,21.094,10.0]
[1680386476640,10.0,21.106,21.094,10.0]
[1680386476839,17.0,21.105,21.094,10.0]
[1680386485072,17.0,21.107,21.094,10.0]
[1680386485378,10.0,21.106,21.094,10.0]
[1680386485683,17.0,21.105,21.094,10.0]
[1680386487295,10.0,21.108,21.095,17.0]
[1680386487483,108.9448,21.109,21.096,10.0]
[1680386487679,108.9448,21.109,21.096,61.73317143]
[1680386489186,10.0,21.108,21.096,61.73317143]
[1680386489987,10.0,21.109,21.096,61.73317143]
[1680386493592,10.0,21.116,21.096,61.73317143]
[1680386496994,0.86903,21.11,21.096,61.73317143]
[1680386510599,0.86903,21.11,21.096,10.0]
[1680386522593,22.24903,21.11,21.096,10.0]
[1680386545217,0.86903,21.11,21.1,21.31]
[1680386545420,0.86903,21.11,21.102,10.0]
[1680386545720,18.959296,21.119,21.105,23.69]
[1680386545915,134.6064,21.13,21.106,37.0]
[1680386546122,10.0,21.129,21.108,23.686]
[1680386546326,10.0,21.129,21.11,21.31]
[1680386546500,10.0,21.129,21.114,23.68]
[1680386546920,31.22,21.13,21.115,24.10774092]
[1680386547115,21.22,21.13,21.115,34.10774092]
[1680386547417,10.0,21.138,21.119,23.675]
[1680386547599,7.5,21.138,21.12,51.31]
[1680386547798,7.5,21.138,21.12,58.41774092]
[1680386548119,7.5,21.138,21.121,10.0]
[1680386548416,21.22,21.13,21.121,10.0]
[1680386552009,10.0,21.136,21.121,10.0]
[1680386553517,10.0,21.136,21.123,10.0]
[1680386553703,109.7745,21.137,21.125,10.0]
[1680386553909,20.0,21.136,21.125,10.0]
[1680386562212,20.0,21.136,21.123,10.0]
[1680386569828,17.0,21.135,21.123,10.0]
[1680386570028,26.67,21.13,21.117,10.0]
[1680386570232,23.667,21.127,21.112,10.0]
[1680386570529,20.0,21.126,21.11,18.941423]
[1680386570829,26.67,21.12,21.11,18.941423]
[1680386571027,30.0,21.119,21.11,18.941423]
[1680386571231,17.0,21.118,21.11,18.941423]
[1680386571529,20.0,21.117,21.11,18.941423]
[1680386571727,40.679,21.116,21.11,18.941423]
[1680386572137,47.78674092,21.116,21.11,18.941423]
[1680386572441,7.10774092,21.115,21.11,18.941423]
[1680386572637,17.0,21.114,21.11,18.941423]
[1680386576215,24.10774092,21.114,21.11,18.941423]
[1680386577238,17.0,21.114,21.11,18.941423]
[1680386577427,17.0,21.115,21.11,18.941423]
[1680386577633,20.0,21.117,21.11,18.941423]
[1680386578131,20.0,21.118,21.11,18.941423]
[1680386578833,17.0,21.117,21.11,18.941423]
[1680386579036,20.0,21.116,21.11,18.941423]
[1680386579237,17.0,21.115,21.11,18.941423]
[1680386581040,26.57,21.12,21.11,18.941423]
[1680386581235,128.2223,21.125,21.11,18.941423]
[1680386581430,10.0,21.129,21.111,10.0]
[1680386581634,20.0,21.128,21.111,10.0]
[1680386581836,10.0,21.127,21.111,10.0]
[1680386582034,20.0,21.126,21.111,10.0]
[1680386583240,20.0,21.126,21.113,10.0]
[1680386583618,20.0,21.126,21.115,10.0]
[1680386586844,20.0,21.126,21.115,10.0]
[1680386593245,10.0,21.124,21.113,10.0]
[1680386594253,17.0,21.125,21.113,10.0]
[1680386598549,38.956758,21.126,21.113,10.0]
[1680386599061,17.0,21.125,21.113,10.0]
[1680386600854,23.672,21.122,21.111,10.0]
[1680386601039,17.0,21.121,21.111,10.0]
[1680386603639,17.0,21.121,21.106,10.0]
[1680386603841,113.4213,21.12,21.106,10.0]
[1680386604135,17.0,21.119,21.106,10.0]
[1680386608045,113.4213,21.12,21.106,10.0]
[1680386608247,20.0,21.126,21.106,10.0]
[1680386608550,20.0,21.126,21.108,10.0]
[1680386608756,20.0,21.126,21.109,17.0]
[1680386608942,20.0,21.126,21.11,10.0]
[1680386609142,20.0,21.126,21.112,10.0]
[1680386609938,10.0,21.127,21.112,10.0]
[1680386610142,37.0,21.126,21.112,10.0]
[1680386613456,20.0,21.126,21.112,10.0]
[1680386613761,113.1108,21.131,21.112,10.0]
[1680386613762,26.56,21.13,21.112,10.0]
[1680386613965,10.0,21.129,21.114,10.0]
[1680386614167,10.0,21.129,21.116,10.0]
[1680386614360,26.56,21.13,21.116,10.0]
[1680386614961,18.951665,21.127,21.116,10.0]
[1680386615364,18.951665,21.127,21.118,10.0]
[1680386615951,18.951665,21.127,21.119,17.0]
[1680386624173,18.951665,21.127,21.118,10.0]
[1680386624371,18.951665,21.127,21.116,10.0]
[1680386624954,36.59,21.13,21.116,10.0]
[1680386625154,10.0,21.128,21.116,10.0]
[1680386628759,17.0,21.127,21.116,10.0]
[1680386632963,10.0,21.128,21.116,10.0]
[1680386633165,17.0,21.127,21.116,10.0]
[1680386633979,17.0,21.127,21.114,10.0]
[1680386634178,20.0,21.126,21.111,10.0]
[1680386634371,27.0,21.125,21.111,10.0]
[1680386634573,27.0,21.125,21.1,26.52]
[1680386634772,26.67,21.12,21.101,115.18]
[1680386635090,26.67,21.12,21.102,10.0]
[1680386635091,17.0,21.119,21.102,10.0]
[1680386642491,141.9075,21.12,21.102,10.0]
[1680386642676,17.0,21.119,21.102,10.0]
[1680386655295,10.0,21.118,21.102,10.0]
[1680386655501,17.0,21.117,21.104,10.0]
[1680386662307,17.0,21.117,21.102,10.0]
[1680386662611,30.0,21.116,21.102,10.0]
[1680386662901,10.0,21.114,21.102,10.0]
[1680386663111,17.0,21.113,21.102,10.0]
[1680386666616,26.67,21.11,21.1,10.0]
[1680386666919,17.0,21.109,21.1,10.0]
[1680386669931,10.0,21.114,21.1,10.0]
[1680386671327,17.0,21.113,21.1,10.0]
[1680386674720,10.0,21.115,21.1,10.0]
[1680386674922,10.0,21.115,21.102,10.0]
[1680386675223,30.0,21.116,21.102,10.0]
[1680386676019,17.0,21.115,21.102,10.0]
[1680386681530,20.0,21.116,21.102,10.0]
[1680386681723,168.3675,21.12,21.102,10.0]
[1680386681724,20.0,21.117,21.102,10.0]
[1680386681926,20.0,21.117,21.104,10.0]
[1680386684029,141.7975,21.12,21.106,10.0]
[1680386684430,141.7975,21.12,21.107,17.0]
[1680386684631,141.7975,21.12,21.108,10.0]
[1680386684831,115.2375,21.12,21.108,10.0]
[1680386685330,17.0,21.119,21.108,10.0]
[1680386685526,115.2375,21.12,21.108,10.0]
[1680386686524,18.957066,21.121,21.108,10.0]
[1680386686722,18.957066,21.121,21.11,10.0]
[1680386687026,18.957066,21.121,21.112,10.0]
[1680386687229,10.0,21.129,21.112,10.0]
[1680386687426,10.0,21.127,21.112,10.0]
[1680386687627,20.0,21.126,21.112,10.0]
[1680386689043,10.0,21.124,21.112,10.0]
[1680386689225,17.0,21.123,21.112,10.0]
[1680386690043,10.0,21.124,21.112,10.0]
[1680386690227,20.0,21.126,21.112,10.0]
[1680386690541,10.0,21.125,21.112,10.0]
[1680386691428,10.0,21.123,21.112,10.0]
[1680386691641,17.0,21.122,21.112,10.0]
[1680386692528,17.0,21.122,21.11,10.0]
[1680386693039,26.67,21.12,21.11,10.0]
[1680386693341,17.0,21.119,21.11,10.0]
[1680386693638,17.0,21.119,21.108,10.0]
[1680386695543,17.0,21.119,21.103,10.0]
[1680386702838,164.0795,21.12,21.103,10.0]
[1680386703139,137.4095,21.12,21.103,10.0]
[1680386704354,17.0,21.119,21.103,10.0]
[1680386704542,10.0,21.118,21.103,10.0]
[1680386704950,17.0,21.117,21.103,10.0]
[1680386707438,17.0,21.118,21.103,10.0]
[1680386708449,30.0,21.117,21.102,10.0]
[1680386708653,27.0,21.116,21.102,10.0]
[1680386709033,10.0,21.115,21.102,10.0]
[1680386709238,17.0,21.114,21.102,10.0]
[1680386717466,17.0,21.115,21.102,10.0]
[1680386722747,17.0,21.116,21.102,10.0]
[1680386724252,30.0,21.117,21.102,10.0]
[1680386725156,20.0,21.117,21.102,10.0]
[1680386725559,17.0,21.116,21.102,10.0]
[1680386727666,20.0,21.117,21.102,10.0]
[1680386728868,17.0,21.116,21.102,10.0]
[1680386731055,20.0,21.117,21.102,10.0]
[1680386731254,20.0,21.118,21.104,10.0]
[1680386733065,110.7395,21.12,21.106,10.0]
[1680386733367,110.7395,21.12,21.108,10.0]
[1680386736158,17.0,21.119,21.108,10.0]
[1680386736755,110.7395,21.12,21.108,10.0]
[1680386736959,137.4095,21.12,21.108,10.0]
[1680386737664,17.0,21.119,21.108,10.0]
[1680386739573,17.0,21.119,21.106,10.0]
[1680386756885,17.0,21.119,21.104,10.0]
[1680386756886,10.0,21.118,21.104,10.0]
[1680386757189,10.0,21.118,21.101,10.0]
[1680386757190,10.0,21.116,21.101,10.0]
[1680386757376,17.0,21.115,21.101,10.0]
[1680386762792,10.0,21.114,21.101,10.0]
[1680386763089,17.0,21.113,21.101,10.0]
[1680386766991,26.59,21.11,21.101,10.0]
[1680386767284,17.0,21.109,21.101,10.0]
[1680386767505,17.0,21.109,21.1,10.0]
[1680386768384,26.59,21.11,21.1,10.0]
[1680386768596,10.0,21.114,21.1,10.0]
[1680386769796,17.0,21.113,21.1,10.0]
[1680386783000,17.0,21.114,21.1,10.0]
[1680386786593,137.3095,21.12,21.1,10.0]
[1680386786795,137.3095,21.12,21.102,10.0]
[1680386787908,17.0,21.116,21.102,10.0]
[1680386833450,17.0,21.109,21.099,10.0]
[1680386838656,17.0,21.109,21.098,10.0]
[1680386846159,17.0,21.109,21.095,10.0]
[1680386846358,131.6874,21.109,21.095,10.0]
[1680386848056,10.0,21.107,21.095,10.0]
[1680386848365,37.0,21.106,21.095,10.0]
[1680386852854,20.0,21.106,21.095,10.0]
[1680386853055,17.0,21.105,21.095,10.0]
[1680386853245,17.0,21.106,21.095,10.0]
[1680386854244,17.0,21.107,21.095,10.0]
[1680386854445,20.0,21.106,21.095,10.0]
[1680386854755,17.0,21.105,21.095,10.0]
[1680386859666,17.0,21.105,21.094,10.0]
[1680386862664,17.0,21.105,21.092,10.0]
[1680386864377,21.38,21.1,21.09,10.0]
[1680386865869,17.0,21.099,21.09,10.0]
[1680386866964,21.38,21.1,21.09,10.0]
[1680386867181,17.0,21.099,21.09,10.0]
[1680386867465,16.93034047,21.099,21.09,10.0]
[1680386869062,21.38,21.1,21.09,10.0]
[1680386869663,17.0,21.099,21.09,10.0]
[1680386869852,21.38,21.1,21.09,10.0]
[1680386870361,17.0,21.099,21.09,10.0]
[1680386870864,21.38,21.1,21.09,10.0]
[1680386871060,17.0,21.099,21.09,10.0]
[1680386884766,21.38,21.1,21.09,10.0]
[1680386884967,17.0,21.099,21.09,10.0]
[1680386899477,21.38,21.1,21.09,10.0]
[1680386899677,118.3851,21.105,21.09,10.0]
[1680386906776,17.0,21.104,21.09,10.0]
[1680386916996,21.38,21.1,21.09,10.0]
[1680386917191,17.0,21.099,21.09,10.0]
[1680386919102,21.38,21.1,21.09,10.0]
[1680386923308,17.0,21.099,21.09,10.0]
[1680386923603,21.38,21.1,21.09,10.0]
[1680386923804,17.0,21.099,21.09,10.0]
[1680386927311,21.38,21.1,21.09,10.0]
[1680386933813,17.0,21.099,21.09,10.0]
[1680386942634,21.38,21.1,21.09,10.0]
[1680386957024,124.6874,21.109,21.09,10.0]
[1680386957208,37.0,21.107,21.09,10.0]
[1680386957409,10.0,21.106,21.09,10.0]
[1680386957709,17.0,21.105,21.09,10.0]
[1680386959529,10.0,21.106,21.09,10.0]
[1680386959709,20.0,21.107,21.092,10.0]
[1680386959915,17.0,21.106,21.092,10.0]
[1680386979147,21.38,21.1,21.092,10.0]
[1680386979331,17.0,21.099,21.092,10.0]
[1680386981532,21.38,21.1,21.092,10.0]
[1680386987143,108.4326,21.105,21.092,10.0]
[1680386994951,17.0,21.104,21.092,10.0]
[1680386996541,21.38,21.1,21.092,10.0]
[1680386996857,17.0,21.099,21.092,10.0]
[1680387000434,21.38,21.1,21.092,10.0]
[1680387007051,108.4326,21.105,21.092,10.0]
[1680387007251,17.0,21.104,21.092,10.0]
[1680387018369,108.4326,21.105,21.092,10.0]
[1680387018562,17.0,21.104,21.092,10.0]
[1680387025668,17.0,21.104,21.09,10.0]
[1680387036176,108.4326,21.105,21.09,10.0]
[1680387036473,21.38,21.1,21.092,10.0]
[1680387036967,108.4326,21.105,21.092,10.0]
[1680387037275,17.0,21.104,21.092,10.0]
[1680387041472,17.0,21.104,21.092,9.64621538]
[1680387043658,108.4326,21.105,21.092,9.64621538]
[1680387055474,17.0,21.104,21.092,9.64621538]
[1680387056277,21.38,21.1,21.09,10.0]
[1680387056472,17.0,21.099,21.09,10.0]
[1680387056879,17.0,21.099,21.089,10.0]
[1680387072496,21.38,21.1,21.089,10.0]
[1680387076796,21.38,21.1,21.089,10.0]
[1680387085402,21.38,21.1,21.09,17.0]
[1680387085588,108.4326,21.105,21.091,10.0]
[1680387085791,108.4326,21.105,21.093,10.0]
[1680387085992,21.38,21.11,21.094,37.0]
[1680387086208,10.0,21.115,21.095,10.0]
[1680387086392,10.0,21.115,21.096,17.0]
[1680387086908,10.0,21.115,21.097,10.0]
[1680387087096,10.0,21.115,21.098,17.0]
[1680387087291,10.0,21.115,21.099,10.0]
[1680387087494,21.38,21.11,21.099,10.0]
[1680387092409,17.0,21.114,21.099,10.0]
[1680387103205,10.0,21.115,21.099,10.0]
[1680387103409,10.0,21.115,21.101,10.0]
[1680387115332,17.0,21.114,21.101,10.0]
[1680387130248,10.0,21.114,21.101,10.0]
[1680387131636,10.0,21.115,21.101,10.0]
[1680387134239,17.0,21.114,21.101,10.0]
[1680387141149,10.0,21.115,21.101,10.0]
[1680387142045,114.7786,21.116,21.101,10.0]
[1680387142248,114.7786,21.116,21.103,10.0]
[1680387145648,10.0,21.114,21.103,10.0]
[1680387146563,10.0,21.115,21.103,10.0]
[1680387148262,10.0,21.115,21.105,10.0]
[1680387156755,10.0,21.115,21.107,10.0]
[1680387157668,10.0,21.118,21.107,10.0]
[1680387164476,10.0,21.118,21.105,10.0]
[1680387180895,10.0,21.118,21.107,10.0]
[1680387191810,10.0,21.118,21.108,17.0]
[1680387192106,10.0,21.118,21.109,10.0]
[1680387202589,9.93712253,21.118,21.109,10.0]
[1680387210415,9.93712253,21.118,21.107,10.0]
[1680387232838,9.93712253,21.118,21.109,10.0]
[1680387233019,9.93712253,21.118,21.111,10.0]
[1680387265752,9.93712253,21.118,21.109,10.0]
[1680387265944,9.93712253,21.118,21.111,10.0]
[1680387270557,9.93712253,21.118,21.112,17.0]
[1680387279976,9.43712253,21.118,21.112,17.0]
[1680387285183,9.43712253,21.118,21.111,10.0]
[1680387285383,9.43712253,21.118,21.112,17.0]
[1680387295400,9.43712253,21.118,21.111,10.0]
[1680387295579,9.43712253,21.118,21.109,10.0]
[1680387295873,9.43712253,21.118,21.11,17.0]
[1680387299974,9.43712253,21.118,21.111,10.0]
[1680387300281,9.43712253,21.118,21.113,10.0]
[1680387300486,9.43712253,21.118,21.114,17.0]
[1680387300986,9.43712253,21.125,21.114,17.0]
[1680387305988,9.43712253,21.125,21.115,20.0]
[1680387306287,9.43712253,21.125,21.116,17.0]
[1680387306492,9.43712253,21.125,21.117,10.0]
[1680387306790,9.43712253,21.125,21.118,17.0]
[1680387306996,9.43712253,21.128,21.119,10.0]
[1680387307176,9.43712253,21.128,21.121,10.0]
[1680387307376,9.43712253,21.128,21.123,10.0]
[1680387307889,9.43712253,21.128,21.124,17.0]
[1680387312381,9.43712253,21.128,21.125,10.0]
[1680387312576,21.33,21.14,21.127,10.0]
[1680387312786,21.33,21.14,21.129,10.0]
[1680387313288,21.33,21.14,21.131,10.0]
[1680387313490,21.33,21.14,21.133,10.0]
[1680387313891,21.33,21.14,21.134,17.0]
[1680387316487,10.0,21.149,21.134,17.0]
[1680387316686,10.0,21.147,21.134,17.0]
[1680387317089,10.0,21.147,21.133,10.0]
[1680387317392,10.0,21.147,21.134,17.0]
[1680387320297,26.59,21.14,21.129,10.0]
[1680387322195,26.59,21.14,21.125,10.0]
[1680387322395,10.0,21.139,21.125,10.0]
[1680387323590,26.59,21.14,21.127,10.0]
[1680387323784,26.59,21.14,21.129,10.0]
[1680387324395,10.0,21.139,21.127,10.0]
[1680387324590,10.0,21.137,21.125,10.0]
[1680387325308,17.10774092,21.137,21.125,10.0]
[1680387329597,17.10774092,21.137,21.123,10.0]
[1680387330402,10.0,21.135,21.123,10.0]
[1680387333111,20.0,21.136,21.123,10.0]
[1680387335709,10.0,21.134,21.123,10.0]
[1680387339411,40.658,21.135,21.123,10.0]
[1680387341413,23.658,21.135,21.123,10.0]
[1680387343114,139.6614,21.136,21.123,10.0]
[1680387343318,139.6614,21.136,21.125,10.0]
[1680387348323,139.6614,21.136,21.124,17.0]
[1680387355612,139.6614,21.136,21.123,10.0]
[1680387355932,163.3174,21.136,21.123,10.0]
[1680387363851,163.3174,21.136,21.12,10.0]
[1680387363852,26.65,21.13,21.12,10.0]
[1680387364136,23.665,21.128,21.111,10.0]
[1680387364339,23.665,21.128,21.112,20.0]
[1680387364540,23.665,21.128,21.113,10.0]
[1680387364928,23.665,21.128,21.115,10.0]
[1680387365226,26.65,21.13,21.115,10.0]